[Event "Fagernes Chess Open 2025"]
[Site "Fagernes"]
[Date "2025.04.14"]
[Round "2.17"]
[White "Wen, Liana"]
[Black "Dybvik, Bjorn Noralf"]
[Result "0-1"]
[Annotator "NA COMBH"]
[ECO "C02"]
[WhiteElo "1404"]
[BlackElo "1686"]
[PlyCount "158"]
[EventDate "2025.04.12"]
[EventCountry "NOR"]
[SourceTitle "playchess.com"]
[Source "ChessBase"]
[SourceQuality "1"]
[TimeControl "40/6000+30:2400+30"]

1. e4 {[%emt 0:00:05]} e6 {[%emt 0:00:19]} 2. d4 {[%emt 0:00:18]} d5 {[%emt 0:00:15]} 3. e5 {[%emt 0:00:29]} c5 {[%emt 0:00:48]} 4. c3 {[%emt 0:01:00]} Nc6 {[%emt 0:00:44]} 5. Nf3 {[%emt 0:01:19]} Qb6 {[%emt 0:01:23]} 6. Be2 {[%emt 0:01:33]} Bd7 {[%emt 0:04:25]} 7. a3 {[%emt 0:02:23]} Nh6 {[%emt 0:02:30]} 8. b4 {[%emt 0:02:30]} cxd4 {[%emt 0:03:29]} 9. cxd4 {[%emt 0:00:46]} Nf5 {[%emt 0:02:11]} 10. Be3 {[%emt 0:02:08]} Be7 {[%emt 0:02:22]} 11. Nc3 {[%emt 0:06:19]} O-O {[%emt 0:02:29]} 12. Qd2 {[%emt 0:06:28]} Nxe3 {[%emt 0:03:12]} 13. Qxe3 {[%emt 0:02:11]} Rac8 {[%emt 0:02:08]} 14. O-O {[%emt 0:00:42]} a6 {[%emt 0:03:52]} 15. b5 {[%emt 0:02:53]} axb5 {[%emt 0:04:03]} 16. Nxb5 {[%emt 0:01:22]} Qd8 {[%emt 0:03:34]} 17. Rfb1 {[%emt 0:05:36]} Na5 {[%emt 0:05:54]} 18. Qd3 {[%emt 0:05:45]} Nc4 {[%emt 0:03:26]} 19. Bd1 {[%emt 0:06:23]} Ra8 {[%emt 0:07:04]} 20. Bc2 {[%emt 0:01:56]} g6 {[%emt 0:01:30]} 21. a4 {[%emt 0:05:33]} Bc6 {[%emt 0:05:41]} 22. Nc3 {[%emt 0:04:14]} Na3 {[%emt 0:03:32]} 23. Rb3 {[%emt 0:05:16]} Nxc2 {[%emt 0:01:28]} 24. Qxc2 {[%emt 0:00:07]} Qd7 {[%emt 0:03:36]} 25. a5 {[%emt 0:04:20]} Rfc8 {[%emt 0:02:03]} 26. Qd2 {[%emt 0:05:12]} Qd8 {[%emt 0:03:48]} 27. Ne2 {[%emt 0:04:35]} Ra7 {[%emt 0:03:38]} 28. Qh6 {[%emt 0:03:32]} Bf8 {[%emt 0:01:12]} 29. Qf4 {[%emt 0:02:38]} Be7 {[%emt 0:01:47]} 30. Qg3 {[%emt 0:02:37]} Rxa5 {[%emt 0:02:12]} 31. Re1 {[%emt 0:01:02]} Rca8 {[%emt 0:01:55]} 32. Rbb1 {[%emt 0:01:46]} Ra3 {[%emt 0:03:43]} 33. Nf4 {[%emt 0:02:37]} R8a4 {[%emt 0:02:19]} 34. Rbd1 {[%emt 0:02:02]} Bb4 {[%emt 0:03:57]} 35. Nh5 {[%emt 0:05:02]} Be7 {[%emt 0:02:35]} 36. h3 {[%emt 0:03:35]} Kh8 {[%emt 0:01:00]} 37. Nf4 {[%emt 0:01:28]} Bb4 {[%emt 0:01:38]} 38. Re2 {[%emt 0:00:28]} Ra1 {[%emt 0:02:37]} 39. Rxa1 {[%emt 0:00:53]} Rxa1+ {[%emt 0:00:25]} 40. Kh2 {[%emt 0:00:02]} Be7 {[%emt 0:01:49]} 41. h4 {[%emt 0:40:49]} Qf8 {[%emt 0:43:31]} 42. h5 {[%emt 0:02:24]} Qh6 {[%emt 0:03:07]} 43. Qh3 {[%emt 0:01:06]} g5 {[%emt 0:02:01]} 44. Nd3 {[%emt 0:01:23]} Bb5 {[%emt 0:02:04]} 45. Rd2 {[%emt 0:00:13]} Bc4 {[%emt 0:02:14]} 46. Nb2 {[%emt 0:01:48]} b5 {[%emt 0:02:42]} 47. g4 {[%emt 0:01:27]} Bb4 {[%emt 0:00:00]} 48. Rc2 {[%emt 0:00:00]} Ra2 {[%emt 0:00:00]} 49. Nd3 {[%emt 0:00:00]} Rxc2 {[%emt 0:00:00]} 50. Nxb4 {[%emt 0:00:00]} Rxf2+ {[%emt 0:00:00]} 51. Kg1 {[%emt 0:00:00]} Rf1+ {[%emt 0:00:00]} 52. Kh2 {[%emt 0:00:00]} Rb1 {[%emt 0:00:00]} 53. Nc6 {[%emt 0:00:00]} Rb2+ {[%emt 0:00:00]} 54. Kh1 {[%emt 0:00:00]} Be2 {[%emt 0:00:00]} 55. Nd8 {[%emt 0:00:00]} Kg8 {[%emt 0:00:00]} 56. Qg2 {[%emt 0:00:00]} Bxf3 {[%emt 0:00:00]} 57. Qxf3 {[%emt 0:00:00]} Qf8 {[%emt 0:00:00]} 58. Qf6 {[%emt 0:00:00]} h6 {[%emt 0:00:00]} 59. Nc6 {[%emt 0:00:00]} Qg7 {[%emt 0:00:00]} 60. Ne7+ {[%emt 0:00:00]} Kh7 {[%emt 0:00:00]} 61. Qf3 {[%emt 0:00:00]} Qf8 {[%emt 0:00:00]} 62. Ng6 {[%emt 0:00:00]} Qg7 {[%emt 0:00:00]} 63. Ne7 {[%emt 0:00:00]} b4 {[%emt 0:00:00]} 64. Qd3+ {[%emt 0:00:00]} Kh8 {[%emt 0:00:00]} 65. Qb5 {[%emt 0:00:00]} Qf8 {[%emt 0:00:00]} 66. Nc6 {[%emt 0:00:00]} Rb1+ {[%emt 0:00:00]} 67. Kh2 {[%emt 0:00:00]} b3 {[%emt 0:00:00]} 68. Na5 {[%emt 0:00:00]} Qc8 {[%emt 0:00:00]} 69. Nc6 {[%emt 0:00:00]} Rc1 {[%emt 0:00:00]} 70. Ne7 {[%emt 0:02:00]} Qc2+ {[%emt 0:00:00]} 71. Kh3 {[%emt 0:02:17]} Qc3+ {[%emt 0:00:11]} 72. Kg2 {[%emt 0:01:19]} Rc2+ {[%emt 0:00:36]} 73. Kg1 {[%emt 0:00:07]} Qa1+ {[%emt 0:00:33]} 74. Qf1 {[%emt 0:00:18]} Rc1 {[%emt 0:00:25]} 75. Qxc1 {[%emt 0:00:46]} Qxc1+ {[%emt 0:00:11]} 76. Kh2 {[%emt 0:02:09]} b2 {[%emt 0:00:39]} 77. Kh3 {[%emt 0:00:31]} b1=Q {[%emt 0:00:37]} 78. Kg3 {[%emt 0:00:40]} Qe3+ {[%emt 0:00:31]} 79. Kg2 {[%emt 0:00:02]} Qbg1# {[%emt 0:01:11]} 0-1

[Event "Fagernes Chess Open 2025"]
[Site "Fagernes"]
[Date "2025.04.14"]
[Round "2.18"]
[White "Andersen, Even Jorstad"]
[Black "Skotheim, Havard"]
[Result "1-0"]
[Annotator "NA COMBH"]
[ECO "B22"]
[WhiteElo "1681"]
[BlackElo "1548"]
[PlyCount "73"]
[EventDate "2025.04.12"]
[EventCountry "NOR"]
[SourceTitle "playchess.com"]
[Source "ChessBase"]
[SourceQuality "1"]
[TimeControl "40/6000+30:2400+30"]

1. e4 {[%emt 0:02:11]} c5 {[%emt 0:00:12]} 2. c3 {[%emt 0:00:06]} Nc6 {[%emt 0:01:15]} 3. d4 {[%emt 0:00:08]} e6 {[%emt 0:02:47]} 4. d5 {[%emt 0:03:51]} exd5 {[%emt 0:03:43]} 5. exd5 {[%emt 0:01:02]} Qe7+ {[%emt 0:05:35]} 6. Be3 {[%emt 0:06:53]} Ne5 {[%emt 0:03:36]} 7. Na3 {[%emt 0:02:16]} a6 {[%emt 0:02:06]} 8. Nc4 {[%emt 0:05:31]} Nxc4 {[%emt 0:01:32]} 9. Bxc4 {[%emt 0:00:06]} d6 {[%emt 0:00:44]} 10. Nf3 {[%emt 0:01:34]} Nf6 {[%emt 0:02:10]} 11. O-O {[%emt 0:01:46]} Qd8 {[%emt 0:02:42]} 12. a4 {[%emt 0:04:12]} Be7 {[%emt 0:00:43]} 13. Re1 {[%emt 0:04:32]} O-O {[%emt 0:12:29]} 14. h3 {[%emt 0:06:40]} Re8 {[%emt 0:00:00]} 15. a5 {[%emt 0:01:26]} Bf5 {[%emt 0:14:41]} 16. b4 {[%emt 0:09:12]} Qc8 {[%emt 0:08:16]} 17. bxc5 {[%emt 0:08:11]} Bf8 {[%emt 0:09:50]} 18. Qb3 {[%emt 0:06:07]} Bxh3 {[%emt 0:07:49]} 19. gxh3 {[%emt 0:03:57]} Qxh3 {[%emt 0:00:32]} 20. Nh2 {[%emt 0:00:41]} Ng4 {[%emt 0:10:19]} 21. Bf4 {[%emt 0:07:09]} Nxh2 {[%emt 0:05:18]} 22. Bxh2 {[%emt 0:00:13]} Qg4+ {[%emt 0:00:42]} 23. Bg3 {[%emt 0:00:52]} dxc5 {[%emt 0:01:28]} 24. Rxe8 {[%emt 0:14:32]} Rxe8 {[%emt 0:00:12]} 25. d6 {[%emt 0:00:32]} Qg6 {[%emt 0:00:21]} 26. d7 {[%emt 0:01:54]} Rd8 {[%emt 0:00:56]} 27. Rd1 {[%emt 0:01:45]} h5 {[%emt 0:02:02]} 28. Bxf7+ {[%emt 0:00:12]} Qxf7 {[%emt 0:00:22]} 29. Qxf7+ {[%emt 0:00:07]} Kxf7 {[%emt 0:00:17]} 30. Bc7 {[%emt 0:00:08]} Ke7 {[%emt 0:01:53]} 31. Bd6+ {[%emt 0:00:44]} Kf7 {[%emt 0:00:44]} 32. Bc7 {[%emt 0:00:18]} Ke7 {[%emt 0:01:24]} 33. Bxd8+ {[%emt 0:00:21]} Kxd8 {[%emt 0:00:13]} 34. Kg2 {[%emt 0:03:59]} Be7 {[%emt 0:00:45]} 35. Kf3 {[%emt 0:03:40]} Kc7 {[%emt 0:00:26]} 36. Ke4 {[%emt 0:00:54]} Bd6 {[%emt 0:02:24]} 37. Rxd6 {[%emt 0:00:11]} 1-0

[Event "Fagernes Chess Open 2025"]
[Site "Fagernes"]
[Date "2025.04.14"]
[Round "2.19"]
[White "Sigvaldsen, Sebastian"]
[Black "Jullum, Hege Ibsen"]
[Result "1-0"]
[Annotator "NA COMBH"]
[ECO "A53"]
[WhiteElo "1613"]
[BlackElo "1484"]
[PlyCount "85"]
[EventDate "2025.04.12"]
[EventCountry "NOR"]
[SourceTitle "playchess.com"]
[Source "ChessBase"]
[SourceQuality "1"]
[TimeControl "40/6000+30:2400+30"]

1. d4 {[%emt 0:00:15]} d6 {[%emt 0:00:17]} 2. c4 {[%emt 0:00:45]} Nf6 {[%emt 0:00:32]} 3. Nc3 {[%emt 0:00:35]} Bf5 {[%emt 0:02:35]} 4. e3 {[%emt 0:01:51]} Nbd7 {[%emt 0:05:04]} 5. Bd3 {[%emt 0:03:04]} Bxd3 {[%emt 0:00:31]} 6. Qxd3 {[%emt 0:00:18]} e5 {[%emt 0:00:44]} 7. d5 {[%emt 0:01:54]} Be7 {[%emt 0:01:20]} 8. Nf3 {[%emt 0:13:49]} Nc5 {[%emt 0:01:30]} 9. Qc2 {[%emt 0:00:29]} e4 {[%emt 0:05:57]} 10. Nd2 {[%emt 0:00:47]} Nd3+ {[%emt 0:04:00]} 11. Ke2 {[%emt 0:01:31]} O-O {[%emt 0:03:26]} 12. Ndxe4 {[%emt 0:00:44]} Nxc1+ {[%emt 0:00:35]} 13. Raxc1 {[%emt 0:00:48]} Nxe4 {[%emt 0:00:45]} 14. Nxe4 {[%emt 0:00:28]} Re8 {[%emt 0:00:25]} 15. Ng3 {[%emt 0:06:05]} Bh4 {[%emt 0:03:30]} 16. Qf5 {[%emt 0:06:55]} Qf6 {[%emt 0:02:19]} 17. Qxf6 {[%emt 0:00:19]} Bxf6 {[%emt 0:00:38]} 18. b4 {[%emt 0:02:22]} a5 {[%emt 0:00:56]} 19. b5 {[%emt 0:02:17]} Bd4 {[%emt 0:01:42]} 20. a4 {[%emt 0:00:35]} g6 {[%emt 0:01:11]} 21. Rhd1 {[%emt 0:04:44]} Bc5 {[%emt 0:00:52]} 22. Kf3 {[%emt 0:01:49]} Re5 {[%emt 0:01:57]} 23. Ne4 {[%emt 0:03:22]} Rf5+ {[%emt 0:01:07]} 24. Ke2 {[%emt 0:00:00]} Bb4 {[%emt 0:01:26]} 25. f4 {[%emt 0:01:25]} h5 {[%emt 0:04:43]} 26. h3 {[%emt 0:01:41]} Re8 {[%emt 0:00:08]} 27. Kd3 {[%emt 0:01:17]} h4 {[%emt 0:01:34]} 28. Rg1 {[%emt 0:03:14]} Rxe4 {[%emt 0:09:41]} 29. Kxe4 {[%emt 0:00:37]} Rh5 {[%emt 0:01:00]} 30. Rcf1 {[%emt 0:00:35]} f5+ {[%emt 0:00:23]} 31. Kd3 {[%emt 0:00:14]} Kf7 {[%emt 0:03:03]} 32. g4 {[%emt 0:04:29]} hxg3 {[%emt 0:01:21]} 33. Rxg3 {[%emt 0:00:09]} Kf6 {[%emt 0:00:29]} 34. Rfg1 {[%emt 0:00:27]} Rh6 {[%emt 0:01:38]} 35. h4 {[%emt 0:00:46]} Bc5 {[%emt 0:05:01]} 36. Rg5 {[%emt 0:01:07]} Rxh4 {[%emt 0:01:30]} 37. Rxg6+ {[%emt 0:01:01]} Kf7 {[%emt 0:00:34]} 38. Rg7+ {[%emt 0:00:29]} Kf8 {[%emt 0:01:12]} 39. Rxc7 {[%emt 0:00:26]} Rg4 {[%emt 0:00:14]} 40. Rxg4 {[%emt 0:00:55]} fxg4 {[%emt 0:00:37]} 41. Rxc5 {[%emt 0:41:32]} g3 {[%emt 0:40:44]} 42. Rc8+ {[%emt 0:00:19]} Kf7 {[%emt 0:00:20]} 43. Ke2 {[%emt 0:00:09]} 1-0